[Event "Karel Janecek Open 2024"]
[Site "Prague"]
[Date "2024.03.07"]
[Round "9.18"]
[White "Yagiz, Bora"]
[Black "Botez, Alexandra"]
[Result "1-0"]
[ECO "C07"]
[WhiteElo "1878"]
[BlackElo "1977"]
[Annotator "NA RC"]
[PlyCount "157"]
[EventDate "2024.02.22"]
[EventType "swiss"]
[EventCountry "CZE"]
[SourceTitle "playchess.com"]
[Source "ChessBase"]
[SourceQuality "1"]
[TimeControl "40/5400+30:1800+30"]

1. e4 {[%emt 0:10:26]} e6 {[%emt 0:03:05]} 2. d4 {[%emt 0:00:38]} d5 {[%emt 0:00:15]} 3. Nd2 {[%emt 0:00:05]} c5 {[%emt 0:00:16]} 4. Ngf3 {[%emt 0:00:05]} cxd4 {[%emt 0:00:14]} 5. Nxd4 {[%emt 0:00:03]} Nc6 {[%emt 0:03:17]} 6. Bb5 {[%emt 0:05:08]} Bd7 {[%emt 0:00:43]} 7. Nxc6 {[%emt 0:00:05]} Bxc6 {[%emt 0:01:25]} 8. Bxc6+ {[%emt 0:05:28]} bxc6 {[%emt 0:00:05]} 9. O-O {[%emt 0:02:02]} Nf6 {[%emt 0:00:32]} 10. e5 {[%emt 0:04:59]} Nd7 {[%emt 0:00:06]} 11. Qe2 {[%emt 0:00:52]} Bc5 {[%emt 0:00:54]} 12. Nb3 {[%emt 0:05:24]} Bb6 {[%emt 0:01:03]} 13. a4 {[%emt 0:00:05]} O-O {[%emt 0:00:31]} 14. Be3 {[%emt 0:08:14]} Qc7 {[%emt 0:03:43]} 15. Bxb6 {[%emt 0:11:29]} axb6 {[%emt 0:02:34]} 16. Rfe1 {[%emt 0:00:09]} c5 {[%emt 0:00:12]} 17. Nd2 {[%emt 0:02:25]} f6 {[%emt 0:02:56]} 18. Nf3 {[%emt 0:04:46]} Rae8 {[%emt 0:00:48]} 19. h3 {[%emt 0:04:32]} fxe5 {[%emt 0:03:25]} 20. Nxe5 {[%emt 0:00:13]} Nxe5 {[%emt 0:01:33]} 21. Qxe5 {[%emt 0:00:07]} Qf7 {[%emt 0:00:06]} 22. Re2 {[%emt 0:01:39]} Qd7 {[%emt 0:04:26]} 23. Rae1 {[%emt 0:07:39]} Rf6 {[%emt 0:17:37]} 24. b3 {[%emt 0:04:35]} h6 {[%emt 0:16:20]} 25. Rd1 {[%emt 0:07:25]} Rf5 {[%emt 0:01:33]} 26. Qg3 {[%emt 0:00:45]} Rg5 {[%emt 0:09:03]} 27. Qc3 {[%emt 0:01:21]} Qf7 {[%emt 0:01:03]} 28. Qd3 {[%emt 0:04:17]} Rf8 {[%emt 0:03:43]} 29. Rde1 {[%emt 0:00:25]} e5 {[%emt 0:01:04]} 30. f3 {[%emt 0:00:51]} Qe6 {[%emt 0:02:42]} 31. Kh2 {[%emt 0:00:44]} Rf4 {[%emt 0:07:22]} 32. Rd2 {[%emt 0:04:39]} Rd4 {[%emt 0:09:52]} 33. Qe2 {[%emt 0:00:01]} Qd6 {[%emt 0:00:17]} 34. Kh1 {[%emt 0:02:18]} Rh4 {[%emt 0:03:27]} 35. Qd3 {[%emt 0:00:58]} d4 {[%emt 0:00:41]} 36. Re4 {[%emt 0:00:42]} Rxe4 {[%emt 0:00:39]} 37. Qxe4 {[%emt 0:00:04]} c4 {[%emt 0:00:45]} 38. f4 {[%emt 0:02:33]} exf4 {[%emt 0:00:30]} 39. Rxd4 {[%emt 0:00:06]} Qf8 {[%emt 0:00:38]} 40. Rxc4 {[%emt 0:01:00]} Rf5 {[%emt 0:00:15]} 41. Qe6+ {[%emt 0:30:48]} Kh7 {[%emt 0:01:51]} 42. Rc8 {[%emt 0:00:00]} Qf6 {[%emt 0:02:21]} 43. Qxf6 {[%emt 0:00:00]} Rxf6 {[%emt 0:00:05]} 44. b4 {[%emt 0:00:00]} f3 {[%emt 0:01:06]} 45. gxf3 {[%emt 0:00:00]} Rxf3 {[%emt 0:00:26]} 46. Kg2 {[%emt 0:00:00]} Ra3 {[%emt 0:00:25]} 47. Rc6 {[%emt 0:00:00]} Ra2 {[%emt 0:02:44]} 48. Kg3 {[%emt 0:00:00]} Rxa4 {[%emt 0:00:31]} 49. c3 {[%emt 0:00:00]} Ra3 {[%emt 0:02:27]} 50. Kf4 {[%emt 0:00:00]} b5 {[%emt 0:00:41]} 51. h4 {[%emt 0:00:00]} Ra1 {[%emt 0:05:36]} 52. h5 {[%emt 0:00:00]} Rf1+ {[%emt 0:01:49]} 53. Ke4 {[%emt 0:00:00]} Re1+ {[%emt 0:03:23]} 54. Kd3 {[%emt 0:00:00]} Rg1 {[%emt 0:00:43]} 55. Rc5 {[%emt 0:00:00]} Rg3+ {[%emt 0:00:14]} 56. Ke4 {[%emt 0:00:00]} Rh3 {[%emt 0:01:04]} 57. Kd4 {[%emt 0:00:00]} Rh4+ {[%emt 0:00:14]} 58. Kd3 {[%emt 0:00:00]} Rh3+ {[%emt 0:01:00]} 59. Kc2 {[%emt 0:00:00]} Rh2+ {[%emt 0:00:32]} 60. Kb3 {[%emt 0:00:00]} g5 {[%emt 0:00:48]} 61. hxg6+ {[%emt 0:00:00]} Kxg6 {[%emt 0:00:06]} 62. Rxb5 {[%emt 0:00:00]} h5 {[%emt 0:00:17]} 63. Rb8 {[%emt 0:00:00]} h4 {[%emt 0:01:34]} 64. b5 {[%emt 0:00:00]} Rh1 {[%emt 0:01:00]} 65. Kc4 {[%emt 0:03:38]} Kg7 {[%emt 0:09:25]} 66. Rd8 {[%emt 0:00:48]} h3 {[%emt 0:02:36]} 67. Rd3 {[%emt 0:01:51]} h2 {[%emt 0:00:05]} 68. Rh3 {[%emt 0:01:02]} Kf7 {[%emt 0:00:05]} 69. Kc5 {[%emt 0:01:16]} Rc1 {[%emt 0:00:40]} 70. Rxh2 {[%emt 0:00:12]} Rxc3+ {[%emt 0:00:06]} 71. Kd6 {[%emt 0:00:12]} Rd3+ {[%emt 0:00:39]} 72. Kc7 {[%emt 0:00:53]} Rc3+ {[%emt 0:00:08]} 73. Kb7 {[%emt 0:00:18]} Ke7 {[%emt 0:00:49]} 74. Rd2 {[%emt 0:00:11]} Rc5 {[%emt 0:00:52]} 75. b6 {[%emt 0:00:10]} Rc1 {[%emt 0:00:07]} 76. Kb8 {[%emt 0:00:13]} Rc3 {[%emt 0:00:52]} 77. b7 {[%emt 0:00:12]} Rc1 {[%emt 0:00:08]} 78. Ra2 {[%emt 0:00:29]} Kd7 {[%emt 0:01:16]} 79. Ka8 {[%emt 0:00:09]} 1-0

[Event "Karel Janecek Open 2024"]
[Site "Prague"]
[Date "2024.03.07"]
[Round "9.19"]
[White "Botez, Andrea"]
[Black "Kaewpitakkun, Pantham"]
[Result "0-1"]
[ECO "D00"]
[WhiteElo "1709"]
[BlackElo "1989"]
[Annotator "RC"]
[PlyCount "84"]
[EventDate "2024.02.22"]
[EventType "swiss"]
[EventCountry "CZE"]
[SourceTitle "playchess.com"]
[Source "ChessBase"]
[SourceQuality "1"]
[TimeControl "40/5400+30:1800+30"]

1. d4 {[%emt 0:03:44]} Nf6 {[%emt 0:00:05]} 2. Nc3 {[%emt 0:00:21]} d5 {[%emt 0:00:09]} 3. Bf4 {[%emt 0:00:07]} g6 {[%emt 0:00:25]} 4. e3 {[%emt 0:00:58]} Bg7 {[%emt 0:00:10]} 5. h4 {[%emt 0:00:49]} O-O {[%emt 0:00:39]} 6. h5 {[%emt 0:03:11]} c5 {[%emt 0:04:33]} 7. hxg6 {[%emt 0:01:30]} fxg6 {[%emt 0:00:09]} 8. dxc5 {[%emt 0:18:22]} Qa5 {[%emt 0:09:05]} 9. Bh6 {[%emt 0:11:41]} Bxh6 {[%emt 0:08:59]} 10. Rxh6 {[%emt 0:00:07]} Qxc5 {[%emt 0:00:47]} 11. Nf3 {[%emt 0:03:14]} Nc6 {[%emt 0:07:13]} 12. Qd2 {[%emt 0:21:55]} Rd8 {[%emt 0:18:00]} 13. O-O-O {[%emt 0:08:36]} Bg4 {[%emt 0:13:37]} 14. Rh4 {[%emt 0:19:57]} Rac8 {[%emt 0:05:19]} 15. Na4 {[%emt 0:01:59]} Qd6 {[%emt 0:03:18]} 16. Nc3 {[%emt 0:00:13]} Qc7 {[%emt 0:07:47]} 17. Nb5 {[%emt 0:00:59]} Qb6 {[%emt 0:01:27]} 18. Bd3 {[%emt 0:00:51]} a6 {[%emt 0:02:25]} 19. Nbd4 {[%emt 0:00:21]} e5 {[%emt 0:03:57]} 20. Nxc6 {[%emt 0:00:09]} bxc6 {[%emt 0:00:07]} 21. Nxe5 {[%emt 0:00:29]} Bxd1 {[%emt 0:00:27]} 22. Qxd1 {[%emt 0:00:02]} Rb8 {[%emt 0:00:59]} 23. b3 {[%emt 0:00:02]} Qc7 {[%emt 0:03:02]} 24. f4 {[%emt 0:01:07]} c5 {[%emt 0:01:06]} 25. c4 {[%emt 0:00:39]} d4 {[%emt 0:04:18]} 26. e4 {[%emt 0:00:28]} a5 {[%emt 0:00:46]} 27. a4 {[%emt 0:01:01]} Re8 {[%emt 0:00:49]} 28. Bc2 {[%emt 0:00:39]} Rxe5 {[%emt 0:00:52]} 29. fxe5 {[%emt 0:00:01]} Qxe5 {[%emt 0:00:02]} 30. Kb1 {[%emt 0:01:07]} Qe7 {[%emt 0:02:21]} 31. Rf4 {[%emt 0:00:38]} Nd7 {[%emt 0:00:20]} 32. g4 {[%emt 0:00:32]} Ne5 {[%emt 0:00:06]} 33. Ka2 {[%emt 0:00:33]} d3 {[%emt 0:01:02]} 34. Bb1 {[%emt 0:00:11]} Rd8 {[%emt 0:00:54]} 35. Qd2 {[%emt 0:00:23]} Nc6 {[%emt 0:00:09]} 36. g5 {[%emt 0:00:33]} Nb4+ {[%emt 0:00:55]} 37. Kb2 {[%emt 0:00:08]} Qe5+ {[%emt 0:00:39]} 38. Kc1 {[%emt 0:00:01]} Qa1 {[%emt 0:00:31]} 39. Rf2 {[%emt 0:00:56]} Qd4 {[%emt 0:01:07]} 40. Qf4 {[%emt 0:00:35]} Qc3+ {[%emt 0:00:28]} 41. Bc2 {[%emt 0:30:41]} Na2+ {[%emt 0:31:08]} 42. Kb1 {[%emt 0:00:41]} dxc2+ {[%emt 0:00:06]} 0-1